[Event "7th Salamanca Festival 2024"]
[Site "Salamanca"]
[Date "2024.05.24"]
[Round "5.2"]
[White "Paehtz, Elisabeth"]
[Black "Salimova, Nurgyul"]
[Result "1/2-1/2"]
[ECO "D02"]
[WhiteElo "2457"]
[BlackElo "2436"]
[Annotator "RC"]
[PlyCount "120"]
[EventDate "2024.05.18"]
[EventType "tourn"]
[EventCountry "ESP"]
[SourceTitle "playchess.com"]
[Source "ChessBase"]
[SourceQuality "1"]
[TimeControl "2400+5"]

1. d4 {[%emt 0:00:01]} Nf6 {[%emt 0:00:02]} 2. Nf3 {[%emt 0:00:02]} d5 {[%emt 0:00:03]} 3. c3 {[%emt 0:00:01]} c5 {[%emt 0:00:28]} 4. dxc5 {[%emt 0:00:03]} e6 {[%emt 0:00:12]} 5. Be3 {[%emt 0:00:20]} Nc6 {[%emt 0:00:24]} 6. b4 {[%emt 0:01:13]} Be7 {[%emt 0:01:34]} 7. g3 {[%emt 0:00:31]} Ng4 {[%emt 0:01:48]} 8. Bc1 {[%emt 0:00:05]} O-O {[%emt 0:01:38]} 9. Bg2 {[%emt 0:01:40]} b6 {[%emt 0:01:37]} 10. cxb6 {[%emt 0:00:43]} Qxb6 {[%emt 0:00:52]} 11. O-O {[%emt 0:00:03]} a5 {[%emt 0:00:27]} 12. h3 {[%emt 0:01:45]} Nf6 {[%emt 0:00:37]} 13. Be3 {[%emt 0:01:36]} Qb8 {[%emt 0:01:01]} 14. bxa5 {[%emt 0:03:41]} Nxa5 {[%emt 0:01:40]} 15. Nbd2 {[%emt 0:00:02]} Ba6 {[%emt 0:00:18]} 16. Bd4 {[%emt 0:02:46]} Nc6 {[%emt 0:02:45]} 17. Nb3 {[%emt 0:02:13]} Nxd4 {[%emt 0:00:25]} 18. cxd4 {[%emt 0:00:03]} Ne4 {[%emt 0:00:22]} 19. Ne5 {[%emt 0:00:23]} Nc3 {[%emt 0:01:09]} 20. Qd2 {[%emt 0:01:02]} Nxe2+ {[%emt 0:00:10]} 21. Kh2 {[%emt 0:00:16]} Rc8 {[%emt 0:05:26]} 22. Nd7 {[%emt 0:00:51]} Qd6 {[%emt 0:02:05]} 23. Ne5 {[%emt 0:04:54]} Nc3 {[%emt 0:02:46]} 24. Rfe1 {[%emt 0:01:22]} Ne4 {[%emt 0:00:32]} 25. Bxe4 {[%emt 0:02:55]} dxe4 {[%emt 0:00:02]} 26. Rac1 {[%emt 0:00:01]} f6 {[%emt 0:01:53]} 27. Ng4 {[%emt 0:00:02]} h5 {[%emt 0:01:48]} 28. Ne3 {[%emt 0:00:01]} Bd3 {[%emt 0:01:31]} 29. Rxc8+ Rxc8 {[%emt 0:00:01]} 30. Rc1 {[%emt 0:01:19]} Rxc1 {[%emt 0:00:23]} 31. Qxc1 {[%emt 0:00:02]} h4 {[%emt 0:00:15]} 32. Qc8+ {[%emt 0:00:12]} Kf7 {[%emt 0:01:19]} 33. Qh8 {[%emt 0:01:33]} hxg3+ {[%emt 0:00:03]} 34. fxg3 {[%emt 0:00:01]} f5 {[%emt 0:05:17]} 35. Qh5+ {[%emt 0:00:19]} Kg8 {[%emt 0:00:03]} 36. Qe8+ {[%emt 0:00:06]} Bf8 {[%emt 0:00:20]} 37. Nc5 {[%emt 0:01:37]} f4 {[%emt 0:00:16]} 38. Ng4 {[%emt 0:00:02]} fxg3+ {[%emt 0:00:14]} 39. Kg2 {[%emt 0:00:01]} Qf4 {[%emt 0:00:23]} 40. Qxe6+ {[%emt 0:01:15]} Kh8 {[%emt 0:00:01]} 41. Nxd3 {[%emt 0:00:12]} Qf3+ {[%emt 0:00:05]} 42. Kg1 {[%emt 0:00:01]} exd3 {[%emt 0:00:20]} 43. Qe3 {[%emt 0:01:02]} Qd1+ {[%emt 0:00:06]} 44. Kg2 {[%emt 0:00:02]} Qc2+ {[%emt 0:00:31]} 45. Kxg3 {[%emt 0:00:05]} d2 {[%emt 0:00:01]} 46. Nf2 {[%emt 0:01:37]} d1=Q {[%emt 0:00:05]} 47. Nxd1 {[%emt 0:00:01]} Qxd1 {[%emt 0:00:05]} 48. Qe8 {[%emt 0:00:19]} Qd3+ {[%emt 0:00:05]} 49. Kg2 {[%emt 0:00:05]} Qf5 {[%emt 0:00:12]} 50. a4 {[%emt 0:00:24]} Kh7 {[%emt 0:00:03]} 51. Qe5 {[%emt 0:01:01]} Qg6+ {[%emt 0:00:14]} 52. Kf3 {[%emt 0:00:14]} Qd3+ {[%emt 0:00:06]} 53. Kg4 {[%emt 0:00:30]} Qd1+ {[%emt 0:00:07]} 54. Kg3 {[%emt 0:00:16]} Qb3+ {[%emt 0:00:10]} 55. Kg4 {[%emt 0:00:05]} Qd1+ {[%emt 0:00:01]} 56. Kg3 {[%emt 0:00:00]} Qg1+ {[%emt 0:00:07]} 57. Kf3 {[%emt 0:00:04]} Qf1+ {[%emt 0:00:10]} 58. Kg3 {[%emt 0:00:03]} Qg1+ {[%emt 0:00:05]} 59. Kf3 {[%emt 0:00:01]} Qf1+ {[%emt 0:00:05]} 60. Kg3 {[%emt 0:00:01]} Qg1+ {[%emt 0:00:08]} 1/2-1/2

[Event "7th Salamanca Festival 2024"]
[Site "Salamanca"]
[Date "2024.05.24"]
[Round "5.3"]
[White "Muzychuk, Mariya"]
[Black "Alekseenko, Kirill"]
[Result "0-1"]
[ECO "E47"]
[WhiteElo "2510"]
[BlackElo "2679"]
[Annotator "TA"]
[PlyCount "85"]
[EventDate "2024.05.18"]
[EventType "tourn"]
[EventCountry "ESP"]
[SourceTitle "playchess.com"]
[Source "ChessBase"]
[SourceQuality "1"]
[TimeControl "2400+5"]

{[%evp 22,85,58,16,94,-15,-3,-8,-16,-23,-9,-26,0,-40,-32,-38,-40,-49,-27,-58,-35,-69,-57,-68,-52,-88,-70,-91,-77,-135,-53,-76,-61,-54,-28,-464,-478,-468,-480,-475,-468,-473,-472,-480,-465,-472,-466,-445,-442,-538,-535,-627,-626,-744,-778,-779,-772,-766,-721,-706,-593,-693,-682,-625,-577,-570]} 1. d4 {[%emt 0:00:05]} Nf6 {[%emt 0:00:29]} 2. c4 {[%emt 0:00:02]} e6 {[%emt 0:00:06]} 3. Nc3 {[%emt 0:00:05]} Bb4 {[%emt 0:00:17]} 4. e3 {[%emt 0:00:07]} O-O {[%emt 0:00:56]} 5. Bd3 {[%emt 0:00:07]} d6 {[%emt 0:00:48]} 6. Nge2 {[%emt 0:00:59]} c6 {[%emt 0:00:04]} 7. O-O {[%emt 0:00:49]} e5 {[%emt 0:00:21]} 8. Qc2 {[%emt 0:01:24] E47: Nimzo-Indian: Rubinstein: 5 Bd3 without ...d5.} Ba5 {[%emt 0:01:50]} 9. a3 {[%emt 0:01:22]} Re8 {[%emt 0:00:46]} 10. b4 {[%emt 0:00:21]} Bc7 {[%emt 0:00:02]} 11. Bb2 {[%emt 0:00:25]} Nbd7 {[%emt 0:00:08]} 12. Ng3 {[%emt 0:00:13]} Nf8 {[%emt 0:00:39]} (12... exd4 $11 {remains equal.} 13. Nce4 Nxe4 14. Bxe4 Nf6) 13. Rad1 $146 {[%emt 0:00:11]} (13. dxe5 $16 dxe5 14. a4) ({Predecessor:} 13. dxe5 dxe5 14. Rad1 Qe7 15. Bf5 Be6 16. Bxe6 Qxe6 17. Nce4 N6d7 18. c5 Rab8 19. Nd6 {½-½ Schafranietz,S-Otto,N Theme 22752 freechess.de 2020}) 13... exd4 $11 {[%emt 0:00:43]} 14. exd4 {[%emt 0:00:10]} d5 {[%emt 0:00:02]} 15. cxd5 {[%emt 0:09:20]} cxd5 {[%emt 0:00:54]} 16. Rfe1 {[%emt 0:00:06]} Bg4 {[%emt 0:02:02]} 17. Be2 {[%emt 0:03:14]} Bxe2 {[%emt 0:00:25]} 18. Ncxe2 {[%emt 0:01:22]} Ne6 {[%emt 0:01:27]} 19. Qd3 {[%emt 0:00:41]} a5 {[%emt 0:01:32]} 20. b5 {[%emt 0:01:30]} a4 {[%emt 0:00:07]} 21. Rc1 {[%emt 0:04:57]} g6 {[%emt 0:00:36]} 22. Rc2 {[%emt 0:02:03]} h5 {[%emt 0:00:12]} 23. h3 {[%emt 0:01:36]} Qd7 {[%emt 0:00:35]} 24. Rec1 {[%emt 0:00:25]} Bd6 {[%emt 0:00:30]} 25. Nf1 {[%emt 0:02:25]} (25. Rb1 $142) 25... h4 {[%emt 0:01:06]} ({Black should play} 25... Ra5 $17 26. Nc3 Nf4) 26. Rb1 $15 {[%emt 0:00:23]} Nh5 {[%emt 0:01:38]} 27. Bc1 $1 {[%emt 0:00:10]} Rac8 {[%emt 0:02:09]} 28. Nh2 $2 {[%emt 0:01:23][%mdl 8192]} (28. Rxc8 $11 {and White stays safe.} Qxc8 (28... Rxc8 29. Qd1 $15) 29. Qd1) 28... Bxh2+ $19 {[%emt 0:00:42]} 29. Kxh2 {[%emt 0:00:02]} Qd6+ {[%emt 0:00:01]} 30. f4 {[%emt 0:03:53]} Nexf4 {[%emt 0:00:55]} ({Don't take} 30... Nhxf4 31. Nxf4 Nxf4 32. Bxf4 Qxf4+ 33. Kh1 Rxc2 34. Qxc2 $19) 31. Bxf4 {[%emt 0:00:23]} Nxf4 {[%emt 0:00:04]} 32. Nxf4 {[%emt 0:00:01]} Qxf4+ {[%emt 0:00:07]} 33. Kh1 {[%emt 0:00:01]} Rxc2 {[%emt 0:00:07]} 34. Qxc2 {[%emt 0:00:01]} Qxd4 {[%emt 0:00:03]} 35. Rd1 {[%emt 0:00:29]} Qc4 {[%emt 0:03:17]} 36. Qxc4 {[%emt 0:01:37]} dxc4 {[%emt 0:00:02]} 37. Rd7 {[%emt 0:00:01]} c3 {[%emt 0:00:10]} 38. Rc7 {[%emt 0:00:07]} Re5 {[%emt 0:00:10]} 39. b6 {[%emt 0:00:18]} Rb5 {[%emt 0:00:25]} ({Inferior is} 39... Re1+ 40. Kh2 $11) 40. Rxc3 {[%emt 0:00:08]} Rxb6 {[%emt 0:00:02]} 41. Rc4 {[%emt 0:00:27]} Rb1+ {[%emt 0:00:03]} 42. Kh2 {[%emt 0:00:01]} b5 {[%emt 0:00:00]} 43. Rc6 {[%emt 0:00:13]} 0-1

[Event "7th Salamanca Festival 2024"]
[Site "Salamanca"]
[Date "2024.05.24"]
[Round "5.4"]
[White "Iturrizaga Bonelli, Eduardo"]
[Black "Adams, Michael"]
[Result "1/2-1/2"]
[ECO "E11"]
[WhiteElo "2591"]
[BlackElo "2677"]
[Annotator "TA"]
[PlyCount "89"]
[EventDate "2024.05.18"]
[EventType "tourn"]
[EventCountry "ESP"]
[SourceTitle "playchess.com"]
[Source "ChessBase"]
[SourceQuality "1"]
[TimeControl "2400+5"]

{[%evp 16,89,13,0,0,0,6,0,0,0,0,0,0,0,8,0,0,0,0,0,10,8,9,0,4,7,0,0,6,0,0,0,0,19,11,12,8,2,13,17,43,0,0,0,20,21,42,56,44,42,42,42,42,42,42,42,42,26,26,26,26,26,42,42,84,84,84,26,26,0,0,0,26,0,0,-6412]} 1. c4 {[%emt 0:00:03]} Nf6 {[%emt 0:00:02]} 2. g3 {[%emt 0:00:05]} e6 {[%emt 0:00:02]} 3. Bg2 {[%emt 0:00:04]} d5 {[%emt 0:00:02]} 4. d4 {[%emt 0:00:47]} Bb4+ {[%emt 0:00:24]} 5. Bd2 {[%emt 0:00:13]} Be7 {[%emt 0:00:03]} 6. Nf3 {[%emt 0:00:03]} O-O {[%emt 0:00:03]} 7. O-O {[%emt 0:00:20]} Nbd7 {[%emt 0:00:26]} 8. Qc2 {[%emt 0:01:09]} c6 {[%emt 0:00:06]} 9. Bf4 {[%emt 0:00:04]} b6 {[%emt 0:01:06]} 10. Nbd2 {[%emt 0:00:03]} Nh5 {[%emt 0:01:16]} 11. e3 {[%emt 0:00:28]} (11. cxd5 {with more complications.} Nxf4 12. Qxc6 Nxe2+ 13. Kh1) 11... Nxf4 {[%emt 0:00:55]} 12. exf4 {[%emt 0:00:17]} Bb7 {[%emt 0:00:22]} 13. cxd5 {[%emt 0:04:02]} cxd5 {[%emt 0:00:25]} 14. Rfe1 {[%emt 0:00:47]} Rc8 {[%emt 0:00:42]} 15. Qb3 {[%emt 0:01:31]} Nb8 {[%emt 0:01:56]} 16. Ne5 {[%emt 0:02:23]} Nc6 {[%emt 0:00:27]} 17. Nxc6 {[%emt 0:01:04]} Bxc6 {[%emt 0:00:57]} 18. Nf3 {[%emt 0:00:03]} Qd6 {[%emt 0:00:23]} 19. a3 {[%emt 0:00:14]} Rfd8 {[%emt 0:02:18]} 20. Bf1 {[%emt 0:00:20][%cal Bg2f1,Bf1d3,Bd3f5][%mdl 32]} Rc7 {[%emt 0:02:55]} 21. Bd3 {[%emt 0:00:11]} Bf6 {[%emt 0:00:44]} 22. Ne5 {[%emt 0:03:33]} Be8 {[%emt 0:00:07]} 23. h4 {[%emt 0:01:28]} b5 {[%emt 0:04:04]} 24. f5 {[%emt 0:15:33]} (24. Bxb5 $2 {too greedy.} Rb8 25. a4 a6 $19) 24... exf5 {[%emt 0:00:25]} 25. Bxf5 {[%emt 0:00:02]} g6 {[%emt 0:03:47]} 26. Bh3 {[%emt 0:00:01]} Re7 {[%emt 0:02:24]} 27. Qc3 {[%emt 0:00:31]} Qc7 {[%emt 0:02:56]} 28. Qxc7 {[%emt 0:00:55]} Rxc7 {[%emt 0:00:01]} 29. Rac1 {[%emt 0:00:01]} Rxc1 {[%emt 0:03:05]} 30. Rxc1 {[%emt 0:00:01]} Bxe5 {[%emt 0:00:02]} 31. dxe5 $11 {[%emt 0:00:02][%mdl 4096] Endgame. KRB-KRB} d4 {[%emt 0:00:01][%cal Ob5b4]} 32. Rc8 {[%emt 0:00:50]} Rxc8 {[%emt 0:01:03]} 33. Bxc8 $14 {[%emt 0:00:01] KB-KB} f6 {[%emt 0:01:17]} 34. exf6 {[%emt 0:02:46] [#] g4 would now be deadly.} Kf7 {[%emt 0:00:05]} 35. Kf1 {[%emt 0:00:13] Strongly threatening b4.} Kxf6 {[%emt 0:02:02]} 36. Ke2 {[%emt 0:00:02] Black must now prevent Kd3.} b4 $1 {[%emt 0:00:36]} 37. axb4 {[%emt 0:00:09] Kd3 is the strong threat.} Bb5+ {[%emt 0:00:04]} 38. Kd2 {[%emt 0:00:06]} h6 {[%emt 0:00:06][%cal Bh7h6,Bh6g5][%mdl 32]} 39. Bg4 {[%emt 0:00:54]} g5 {[%emt 0:00:12]} 40. hxg5+ {[%emt 0:00:15]} hxg5 {[%emt 0:00:01] [#]} 41. Be2 {[%emt 0:00:21]} (41. f4 $1 $16) 41... Bd7 {[%emt 0:00:13]} 42. Kd3 {[%emt 0:01:06]} Bb5+ {[%emt 0:00:09]} 43. Kd2 {[%emt 0:00:02]} (43. Kxd4 Bxe2 44. Ke3 Bb5 $19) 43... Bd7 {[%emt 0:00:01]} 44. Kd3 {[%emt 0:00:26][%cal Od3e4] Threatens to win with Ke4!} Bb5+ $1 {[%emt 0:00:02]} 45. Ke4 $2 {[%emt 0:00:04][%mdl 40960] Weighted Error Value: White=0.07 (flawless) /Black=0.04 (flawless) .  Loses game:     	White=1     	---        Mistake:       	White=1     	---        Inaccurate:     	White=2     	Black=2      OK:         	White=14    	Black=13     Best:        	White=2     	Black=3      Strong:       	---       	Black=2     . An unexpected result.} (45. Kxd4 $2 {loses.} Bxe2 46. Ke3 Bb5 $19) (45. Kd2 $11 Bd7) 1/2-1/2

[Event "7th Salamanca Festival 2024"]
[Site "Salamanca"]
[Date "2024.05.25"]
[Round "6.1"]
[White "Calzetta Ruiz, Monica"]
[Black "Adams, Michael"]
[Result "1/2-1/2"]
[ECO "C91"]
[WhiteElo "2244"]
[BlackElo "2677"]
[Annotator "TA"]
[PlyCount "97"]
[EventDate "2024.05.18"]
[EventType "tourn"]
[EventCountry "ESP"]
[SourceTitle "playchess.com"]
[Source "ChessBase"]
[SourceQuality "1"]
[TimeControl "2400+5"]

{[%evp 28,97,0,-3,0,0,0,0,0,16,0,-15,-18,-16,-15,-20,-8,-8,-8,-14,-6,-11,-10,-21,0,0,0,0,5,9,17,18,22,15,106,110,141,108,112,113,111,106,119,123,120,114,119,118,119,107,120,93,93,93,95,93,93,93,93,93,93,8,8,8,8,0,0,0,0,0,0,0]} 1. e4 {[%emt 0:00:04]} e5 {[%emt 0:00:02]} 2. Nf3 {[%emt 0:00:03]} Nc6 {[%emt 0:00:03]} 3. Bb5 {[%emt 0:00:04]} a6 {[%emt 0:00:02]} 4. Ba4 {[%emt 0:00:02]} Nf6 {[%emt 0:00:02]} 5. O-O {[%emt 0:00:07]} Be7 {[%emt 0:00:04]} 6. Re1 {[%emt 0:00:05]} b5 {[%emt 0:00:03]} 7. Bb3 {[%emt 0:00:03]} O-O {[%emt 0:00:04]} 8. d4 {[%emt 0:00:07][%cal Bd2d4,Bd4d5][%mdl 32]} d6 {[%emt 0:00:16]} 9. c3 {[%emt 0:00:05]} Bg4 {[%emt 0:00:05]} 10. d5 {[%emt 0:00:20]} Na5 {[%emt 0:00:07]} 11. Bc2 {[%emt 0:00:07]} Qc8 {[%emt 0:00:16]} 12. h3 {[%emt 0:05:52]} Bd7 {[%emt 0:00:10]} 13. Nbd2 {[%emt 0:00:30]} c6 {[%emt 0:00:19]} 14. dxc6 {[%emt 0:00:06]} Qxc6 {[%emt 0:00:03]} 15. Nf1 {[%emt 0:00:02]} Rfe8 {[%emt 0:02:28]} 16. Ng3 {[%emt 0:00:43]} Nc4 {[%emt 0:00:05]} 17. a4 {[%emt 0:00:33]} Rac8 {[%emt 0:02:23]} 18. axb5 {[%emt 0:04:07]} axb5 {[%emt 0:00:03]} 19. b3 {[%emt 0:00:05]} Nb6 {[%emt 0:00:07]} 20. Bd2 {[%emt 0:00:31]} Ra8 {[%emt 0:02:49]} 21. Qe2 {[%emt 0:00:08]} Rxa1 {[%emt 0:01:55]} 22. Rxa1 {[%emt 0:00:03]} Ra8 {[%emt 0:00:03]} 23. Qf1 {[%emt 0:02:45]} Ne8 {[%emt 0:05:26]} 24. Bd3 {[%emt 0:04:57]} Nc7 {[%emt 0:00:15]} 25. Be3 {[%emt 0:00:45]} h6 {[%emt 0:01:51]} (25... Qxc3 $2 26. Rc1 Qxb3 27. Bxb6 $18 (27. Rxc7 Bd8 $18)) 26. Rxa8+ {[%emt 0:02:20]} Nbxa8 {[%emt 0:00:26]} 27. Qa1 {[%emt 0:00:31]} Be6 {[%emt 0:03:45][%cal Oe7f8]} 28. Qa5 {[%emt 0:02:41]} Bxb3 {[%emt 0:05:10]} 29. Nf5 {[%emt 0:00:03]} Bf6 {[%emt 0:00:08]} 30. Qb4 {[%emt 0:00:12][%csl LRb3,LRd6]} Bc4 {[%emt 0:01:47]} (30... Be6 $11 {remains equal.}) 31. Bxc4 $16 {[%emt 0:00:25]} (31. Qxd6 Qxd6 32. Nxd6 Bxd3 $19) 31... bxc4 {[%emt 0:01:30]} 32. Qxd6 {[%emt 0:00:06] White is much more active.} Qxd6 {[%emt 0:01:05]} 33. Nxd6 {[%emt 0:00:03]} Be7 {[%emt 0:00:09]} 34. Nxc4 {[%emt 0:00:06]} Nb5 {[%emt 0:00:03]} 35. Nfxe5 {[%emt 0:00:25]} Nxc3 {[%emt 0:00:05]} 36. f3 {[%emt 0:00:26]} Nc7 {[%emt 0:00:06]} 37. Kf1 {[%emt 0:01:01]} Ne6 {[%emt 0:00:11]} 38. Nc6 {[%emt 0:00:46]} Bg5 {[%emt 0:00:30]} 39. Bxg5 {[%emt 0:00:20]} hxg5 {[%emt 0:00:01][%mdl 4096] Endgame. KNN-KNN} 40. g3 {[%emt 0:00:22]} f6 {[%emt 0:00:55]} 41. Kf2 {[%emt 0:00:04]} Nb5 {[%emt 0:00:19]} 42. Ke3 {[%emt 0:00:05]} Kf7 {[%emt 0:00:02]} 43. Nb6 {[%emt 0:00:13]} Nd6 {[%emt 0:00:21]} 44. f4 {[%emt 0:00:47]} ({Better is} 44. Kd3 $16) 44... gxf4+ $11 {[%emt 0:00:03] The position is equal.} 45. gxf4 {[%emt 0:00:01]} g5 {[%emt 0:00:35]} 46. fxg5 {[%emt 0:01:00]} Nxg5 {[%emt 0:00:03]} 47. e5 {[%emt 0:00:15]} fxe5 {[%emt 0:00:05]} 48. Nxe5+ {[%emt 0:00:02]} Ke6 {[%emt 0:00:02]} 49. Nd3 {[%emt 0:01:00] Weighted Error Value: White=0.10 (very precise) /Black=0.11 (very precise) .  Mistake:       	White=1     	Black=1      OK:         	White=10    	Black=11     Best:        	White=1     	Black=1} 1/2-1/2

[Event "7th Salamanca Festival 2024"]
[Site "Salamanca"]
[Date "2024.05.25"]
[Round "6.2"]
[White "Alekseenko, Kirill"]
[Black "Iturrizaga Bonelli, Eduardo"]
[Result "1-0"]
[ECO "B12"]
[WhiteElo "2679"]
[BlackElo "2591"]
[Annotator "RC"]
[PlyCount "111"]
[EventDate "2024.05.18"]
[EventType "tourn"]
[EventCountry "ESP"]
[SourceTitle "playchess.com"]
[Source "ChessBase"]
[SourceQuality "1"]
[TimeControl "2400+5"]

1. e4 {[%emt 0:00:04]} c6 {[%emt 0:00:02]} 2. d4 {[%emt 0:00:08]} d5 {[%emt 0:00:01]} 3. e5 {[%emt 0:00:13]} Bf5 {[%emt 0:00:05]} 4. Nd2 {[%emt 0:00:13]} e6 {[%emt 0:00:06]} 5. Nb3 {[%emt 0:00:06]} Nd7 {[%emt 0:00:08]} 6. Nf3 {[%emt 0:00:19]} Qc7 {[%emt 0:00:07]} 7. Be2 {[%emt 0:00:11]} c5 {[%emt 0:00:54]} 8. c3 {[%emt 0:00:03]} h6 {[%emt 0:00:41]} 9. O-O {[%emt 0:00:09]} c4 {[%emt 0:01:35]} 10. Nbd2 {[%emt 0:00:02]} Ne7 {[%emt 0:00:01]} 11. Ne1 {[%emt 0:00:24]} Nc6 {[%emt 0:02:49]} 12. Nc2 {[%emt 0:00:45]} Be7 {[%emt 0:01:51]} 13. Ne3 {[%emt 0:01:31]} Bh7 {[%emt 0:00:02]} 14. f4 {[%emt 0:00:29]} O-O {[%emt 0:00:20]} 15. Kh1 {[%emt 0:02:01]} b5 {[%emt 0:01:29]} 16. Bg4 {[%emt 0:04:23]} Rae8 {[%emt 0:09:01]} 17. Bh3 {[%emt 0:07:22]} Nb6 {[%emt 0:06:07]} 18. a3 {[%emt 0:04:16]} a5 {[%emt 0:02:17]} 19. Qh5 {[%emt 0:03:38]} Kh8 {[%emt 0:03:15]} 20. f5 {[%emt 0:01:48]} Bg5 {[%emt 0:00:02]} 21. Nf3 {[%emt 0:00:18]} g6 {[%emt 0:00:02]} 22. fxg6 {[%emt 0:00:27]} fxg6 {[%emt 0:00:01]} 23. Qg4 {[%emt 0:00:01]} Bd8 {[%emt 0:00:01]} 24. Bd2 {[%emt 0:01:21]} Qg7 {[%emt 0:01:10]} 25. Ng1 {[%emt 0:02:58]} Bg8 {[%emt 0:02:25]} 26. Qe2 {[%emt 0:01:29]} Na4 {[%emt 0:01:06]} 27. b3 {[%emt 0:01:34]} Rxf1 {[%emt 0:03:52]} 28. Rxf1 {[%emt 0:00:05]} Nb6 {[%emt 0:00:45]} 29. a4 {[%emt 0:00:27]} Na7 {[%emt 0:00:27]} 30. bxc4 {[%emt 0:01:48]} Nxc4 {[%emt 0:00:17]} 31. Bc1 {[%emt 0:01:47]} Nxe3 {[%emt 0:00:29]} 32. Bxe3 {[%emt 0:00:04]} bxa4 {[%emt 0:00:02]} 33. Qc2 {[%emt 0:00:02]} g5 {[%emt 0:00:18]} 34. Bg4 {[%emt 0:00:50]} a3 {[%emt 0:00:29]} 35. Qa4 {[%emt 0:00:37]} Rf8 {[%emt 0:00:01]} 36. Ra1 {[%emt 0:00:15]} Be7 {[%emt 0:00:27]} 37. Qxa5 {[%emt 0:00:03]} Nc6 {[%emt 0:00:17]} 38. Qa6 {[%emt 0:00:25]} Nd8 {[%emt 0:00:01]} 39. Ne2 {[%emt 0:00:01]} Qg6 {[%emt 0:00:04]} 40. Ng3 {[%emt 0:00:29]} Qc2 {[%emt 0:00:01]} 41. Rxa3 {[%emt 0:00:12]} Bxa3 {[%emt 0:00:11]} 42. Qxa3 {[%emt 0:00:01]} Re8 {[%emt 0:00:08]} 43. h3 {[%emt 0:00:03]} Bf7 {[%emt 0:00:05]} 44. Kh2 {[%emt 0:00:01]} Qb1 {[%emt 0:00:04]} 45. Qa4 {[%emt 0:00:09]} Qb7 {[%emt 0:00:02]} 46. Bf3 {[%emt 0:00:04]} Qe7 {[%emt 0:00:07]} 47. c4 {[%emt 0:00:04]} dxc4 {[%emt 0:00:02]} 48. Ne4 {[%emt 0:00:01]} Bg6 {[%emt 0:00:03]} 49. Nf6 {[%emt 0:00:07]} Rf8 {[%emt 0:00:02]} 50. Qxc4 {[%emt 0:00:06]} Kg7 {[%emt 0:00:04]} 51. Bd2 {[%emt 0:00:12]} Qa7 {[%emt 0:00:17]} 52. Bb4 {[%emt 0:00:04]} Rf7 {[%emt 0:00:02]} 53. Bd6 {[%emt 0:00:10]} Qb6 {[%emt 0:00:04]} 54. Qc8 {[%emt 0:00:02]} Qxd4 {[%emt 0:00:10]} 55. Qxd8 {[%emt 0:00:05]} Qf4+ {[%emt 0:00:01]} 56. g3 {[%emt 0:00:04]} 1-0